fUSD/lending_fUSD_20260627
["ID","MTS","AMOUNT","RATE_DAILY","PERIOD"]
[426537532,1782566824000,307.01,9.959e-05,2]
[426537533,1782566825000,307.01,0.00010001,2]
[426537534,1782566829000,500.0,0.00037407,120]
[426537535,1782566830000,229.67,0.00037407,120]
[426537536,1782566841000,700.0,0.000116,4]
[426537537,1782566843000,1400.0,0.000117,4]
[426537538,1782566845000,2100.0,0.000118,4]
[426537539,1782566847000,2800.0,0.000119,4]
[426537544,1782566978000,-135.3421323,0.0001026,2]
[426537542,1782566978000,-307.01,0.00010112,2]
[426537541,1782566978000,-307.01,0.00010052,2]
[426537543,1782566978000,-307.01,0.00010181,2]
[426537548,1782566980000,309.14,9.631e-05,2]
[426537547,1782566980000,309.14,9.617e-05,2]
[426537546,1782566980000,309.14,9.609e-05,2]
[426537545,1782566980000,309.14,9.606e-05,2]
[426537549,1782566981000,309.14,9.651e-05,2]
[426537551,1782566981000,225.06438133,9.676e-05,2]
[426537550,1782566981000,84.07561867,9.676e-05,2]
[426537552,1782566982000,309.14,9.707e-05,2]
[426537553,1782566982000,309.14,9.743e-05,2]
[426537554,1782566983000,309.14,9.785e-05,2]
[426537555,1782566984000,309.14,9.833e-05,2]
[426537556,1782566985000,309.14,9.886e-05,2]
[426537557,1782566986000,309.14,9.945e-05,2]
[426537562,1782567002000,-97.82755864,0.0001026,2]
[426537561,1782567002000,-309.14,0.00010236,2]
[426537560,1782567002000,-309.14,0.00010155,2]
[426537559,1782567002000,-309.14,0.0001008,2]
[426537558,1782567002000,-309.14,0.0001001,2]
[426537565,1782567031000,-73.84030906,0.0001026,2]
[426537566,1782567031000,-203.43917523,0.00010305,2]
[426537568,1782567031000,-191.73918167,0.00010323,2]
[426537569,1782567031000,-307.01,0.00010348,2]
[426537567,1782567031000,-117.40081833,0.00010323,2]
[426537616,1782567032000,-753.17192543,0.00011455,2]
[426537602,1782567032000,-500.0,0.00011205,2]
[426537604,1782567032000,-166.66,0.00011213,2]
[426537606,1782567032000,-166.66,0.0001134,2]
[426537611,1782567032000,-13362.98509514,0.00011455,2]
[426537607,1782567032000,-308.06,0.00011344,2]
[426537605,1782567032000,-952.33,0.00011227,2]
[426537609,1782567032000,-256.51,0.00011424,2]
[426537618,1782567032000,-280.0,0.00011455,2]
[426537614,1782567032000,-593.99764931,0.00011455,2]
[426537619,1782567032000,-2108.94415124,0.00011455,2]
[426537627,1782567032000,-271.28599116,0.00011455,2]
[426537626,1782567032000,-152.0,0.00011455,2]
[426537623,1782567032000,-152.0,0.00011455,2]
[426537625,1782567032000,-152.0,0.00011455,2]
[426537624,1782567032000,-483.13971426,0.00011455,2]
[426537621,1782567032000,-152.0,0.00011455,2]
[426537620,1782567032000,-2591.45356488,0.00011455,2]
[426537595,1782567032000,-150.0,0.00011076,2]
[426537629,1782567032000,-1270.49092134,0.00011455,2]
[426537630,1782567032000,-1580.78378185,0.00011455,2]
[426537634,1782567032000,-500.67956629,0.00011485,2]
[426537635,1782567032000,-250.08616098,0.00011485,2]
[426537622,1782567032000,-152.0,0.00011455,2]
[426537593,1782567032000,-250.0,0.00011057,2]
[426537600,1782567032000,-500.0,0.0001116,2]
[426537594,1782567032000,-652.73,0.00011076,2]
[426537570,1782567032000,-150.0,0.00010405,2]
[426537573,1782567032000,-150.0,0.00010405,2]
[426537571,1782567032000,-25.15793141,0.00010405,2]
[426537575,1782567032000,-240.88788984,0.00010416,2]
[426537572,1782567032000,-124.84206859,0.00010405,2]
[426537574,1782567032000,-150.0,0.00010405,2]
[426537576,1782567032000,-68.25211016,0.00010416,2]
[426537578,1782567032000,-163.83,0.00010445,2]
[426537587,1782567032000,-307.01,0.00010926,2]
[426537577,1782567032000,-307.01,0.00010445,2]
[426537579,1782567032000,-309.14,0.00010514,2]
[426537580,1782567032000,-157.59,0.0001054,2]
[426537582,1782567032000,-309.14,0.00010617,2]
[426537581,1782567032000,-307.01,0.00010551,2]
[426537584,1782567032000,-307.01,0.00010667,2]
[426537583,1782567032000,-304.88,0.00010617,2]
[426537586,1782567032000,-203.43917522,0.0001088,2]
[426537585,1782567032000,-307.01,0.00010792,2]
[426537589,1782567032000,-150.0,0.00010959,2]
[426537599,1782567032000,-256.51,0.00011145,2]
[426537631,1782567032000,-166.66,0.00011467,2]
[426537588,1782567032000,-166.66,0.00010959,2]
[426537592,1782567032000,-250.0,0.00011057,2]
[426537590,1782567032000,-150.0,0.00010984,2]
[426537591,1782567032000,-170.9,0.00011048,2]
[426537597,1782567032000,-166.66,0.00011086,2]
[426537632,1782567032000,-5672.0,0.00011485,2]
[426537639,1782567032000,-500.0,0.00011554,2]
[426537633,1782567032000,-545.007,0.00011485,2]
[426537628,1782567032000,-203.43917522,0.00011455,2]
[426537669,1782567032000,-500.0,0.00011554,2]
[426537670,1782567032000,-500.0,0.00011554,2]
[426537671,1782567032000,-500.0,0.00011554,2]
[426537663,1782567032000,-500.0,0.00011554,2]
[426537673,1782567032000,-500.0,0.00011554,2]
[426537674,1782567032000,-500.0,0.00011554,2]
[426537667,1782567032000,-500.0,0.00011554,2]
[426537668,1782567032000,-283.10917564,0.00011554,2]
[426537666,1782567032000,-500.0,0.00011554,2]
[426537675,1782567032000,-500.0,0.00011554,2]
[426537665,1782567032000,-500.0,0.00011554,2]
[426537677,1782567032000,-500.0,0.00011554,2]
[426537687,1782567032000,-37278.78800591,0.00011555,2]
[426537680,1782567032000,-500.0,0.00011554,2]
[426537678,1782567032000,-500.0,0.00011554,2]
[426537679,1782567032000,-500.0,0.00011554,2]
[426537684,1782567032000,-500.0,0.00011554,2]
[426537682,1782567032000,-500.0,0.00011554,2]
[426537681,1782567032000,-500.0,0.00011554,2]
[426537683,1782567032000,-500.0,0.00011554,2]
[426537685,1782567032000,-150.0,0.00011554,2]
[426537686,1782567032000,-5609.40863327,0.00011555,2]
[426537688,1782567032000,-9752.00774986,0.00011555,2]
[426537676,1782567032000,-500.0,0.00011554,2]
[426537664,1782567032000,-500.0,0.00011554,2]
[426537672,1782567032000,-500.0,0.00011554,2]
[426537659,1782567032000,-500.0,0.00011554,2]
[426537636,1782567032000,-170.9,0.00011504,2]
[426537643,1782567032000,-224.73433501,0.00011554,2]
[426537638,1782567032000,-500.0,0.00011554,2]
[426537640,1782567032000,-255.43956775,0.00011554,2]
[426537637,1782567032000,-500.0,0.00011554,2]
[426537642,1782567032000,-500.0,0.00011554,2]
[426537644,1782567032000,-500.0,0.00011554,2]
[426537641,1782567032000,-265.69867692,0.00011554,2]
[426537647,1782567032000,-500.0,0.00011554,2]
[426537662,1782567032000,-500.0,0.00011554,2]
[426537645,1782567032000,-500.0,0.00011554,2]
[426537646,1782567032000,-500.0,0.00011554,2]
[426537648,1782567032000,-500.0,0.00011554,2]
[426537660,1782567032000,-500.0,0.00011554,2]
[426537655,1782567032000,-500.0,0.00011554,2]
[426537657,1782567032000,-500.0,0.00011554,2]
[426537650,1782567032000,-500.0,0.00011554,2]
[426537656,1782567032000,-500.0,0.00011554,2]
[426537654,1782567032000,-500.0,0.00011554,2]
[426537658,1782567032000,-500.0,0.00011554,2]
[426537652,1782567032000,-500.0,0.00011554,2]
[426537649,1782567032000,-500.0,0.00011554,2]
[426537661,1782567032000,-500.0,0.00011554,2]
[426537651,1782567032000,-500.0,0.00011554,2]
[426537653,1782567032000,-500.0,0.00011554,2]
[426537689,1782567035000,307.19,9.79e-05,2]
[426537691,1782567036000,307.19,9.824e-05,2]
[426537690,1782567036000,307.19,9.798e-05,2]
[426537692,1782567037000,307.19,9.866e-05,2]
[426537701,1782567038000,-21193.29721482,0.00011555,2]
[426537700,1782567038000,-943.54764211,0.00011555,2]
[426537703,1782567038000,-1148.53642385,0.00011555,2]
[426537704,1782567038000,307.19,9.926e-05,2]
[426537702,1782567038000,-10998.04526463,0.00011555,2]
[426537712,1782567040000,-827169.12378238,0.00011555,2]
[426537710,1782567040000,-636.3796537,0.00011555,2]
[426537709,1782567040000,-1385.4119872,0.00011555,2]
[426537708,1782567040000,-307.19,0.00010096,2]
[426537707,1782567040000,-254.66218511,0.00011555,2]
[426537706,1782567040000,-307.19,0.00010003,2]
[426537711,1782567040000,-1082.11635614,0.00011555,2]
[426537715,1782567043000,-232.65239744,0.00010335,2]
[426537714,1782567043000,-307.19,0.00010207,2]
[426537726,1782567046000,-218.18239744,0.0001048,2]
[426537725,1782567046000,-74.53760256,0.00010335,2]
[426537730,1782567047000,-168.93239744,0.00010641,2]
[426537728,1782567047000,-89.00760256,0.0001048,2]
[426537839,1782567072000,157.646007,0.00011875,3]
[426537840,1782567175000,500.0,0.00037407,120]
[426537845,1782567308000,307.13,9.667e-05,2]
[426537844,1782567308000,307.13,9.639e-05,2]
[426537843,1782567308000,307.13,9.62e-05,2]
[426537842,1782567308000,307.13,9.608e-05,2]
[426537841,1782567308000,307.13,9.604e-05,2]
[426537847,1782567309000,307.13,9.746e-05,2]
[426537846,1782567309000,307.13,9.703e-05,2]
[426537848,1782567310000,307.13,9.797e-05,2]
[426537849,1782567311000,307.13,9.857e-05,2]
[426537850,1782567312000,307.13,9.924e-05,2]
[426537851,1782567313000,307.13,9.999e-05,2]
[426537852,1782567401000,157.646008,0.00011875,3]
[426537854,1782567519000,157.65,0.00037407,120]
[426537855,1782567577000,336.55350024,9.627e-05,2]
[426537856,1782567600000,742.0,0.00012023,5]
[426537857,1782567814000,464.2293233,9.943e-05,2]
[426537858,1782567854000,-150.0,0.00010021,2]
[426537859,1782567918000,-150.0,0.00010021,2]
[426537862,1782567995000,455.74213965,9.943e-05,2]
[426537863,1782567997000,-152.0,0.00010022,2]
[426537865,1782568021000,-507.058,0.00010022,2]
[426537864,1782568021000,-13.16,0.00010022,2]
[426537866,1782568032000,300.0,0.000119,4]
[426537868,1782568047000,1749.19065548,9.879e-05,2]
[426537869,1782568047000,5284.65934452,9.879e-05,2]
[426537871,1782568052000,-1000.0,0.00010022,2]
[426537873,1782568052000,-1000.0,0.00010022,2]
[426537872,1782568052000,-1000.0,0.00010022,2]
[426537870,1782568052000,-492.942,0.00010022,2]
[426537874,1782568052000,-1000.0,0.00010022,2]
[426537875,1782568052000,-1000.0,0.00010022,2]
[426537876,1782568052000,-927.59,0.00010022,2]
[426537877,1782568081000,270.217583,9.972e-05,2]
[426537881,1782568082000,-427.59,0.00010022,2]
[426537880,1782568082000,-1000.0,0.00010022,2]
[426537878,1782568082000,-72.41,0.00010022,2]
[426537879,1782568082000,-1000.0,0.00010022,2]
[426537882,1782568101000,1125.23,9.866e-05,2]
[426537885,1782568105000,-572.41,0.00010022,2]
[426537883,1782568105000,-150.0,0.00010021,2]
[426537887,1782568105000,-1000.0,0.00010022,2]
[426537886,1782568105000,-1000.0,0.00010022,2]
[426537888,1782568105000,-686.64861133,0.00010022,2]
[426537884,1782568105000,-175.17480779,0.00010022,2]
[426537889,1782568105000,-313.35138867,0.00010022,2]
[426537891,1782568105000,-150.45421455,0.00010022,2]
[426537892,1782568105000,-849.54578545,0.00010022,2]
[426537893,1782568105000,-1000.0,0.00010022,2]
[426537895,1782568105000,-734.68763367,0.00010022,2]
[426537890,1782568105000,-1000.0,0.00010022,2]
[426537894,1782568105000,-1000.0,0.00010022,2]
[426537897,1782568130000,-1000.0,0.00010022,2]
[426537898,1782568130000,-1000.0,0.00010022,2]
[426537899,1782568130000,-1000.0,0.00010022,2]
[426537896,1782568130000,-265.31236633,0.00010022,2]
[426537909,1782568131000,-159.50369054,0.00010104,2]
[426537908,1782568131000,-307.13,0.00010082,2]
[426537907,1782568131000,-228.37,0.00010043,2]
[426537906,1782568131000,-417.32463043,0.00010034,2]
[426537905,1782568131000,-248.44536957,0.00010034,2]
[426537903,1782568131000,-1000.0,0.00010022,2]
[426537904,1782568131000,-1000.0,0.00010022,2]
[426537902,1782568131000,-1000.0,0.00010022,2]
[426537901,1782568131000,-508.43349838,0.00010022,2]
[426537900,1782568131000,-491.56650162,0.00010022,2]
[426537917,1782568150000,-305.78,0.00010228,2]
[426537915,1782568150000,-307.13,0.00010173,2]
[426537916,1782568150000,-169.05,0.00010206,2]
[426537914,1782568150000,-158.0,0.00010139,2]
[426537918,1782568150000,-152.0,0.00010228,2]
[426537912,1782568150000,-305.78,0.00010109,2]
[426537910,1782568150000,-94.10630946,0.00010104,2]
[426537911,1782568150000,-1136.45,0.00010104,2]
[426537913,1782568150000,-305.78,0.00010139,2]
[426537920,1782568150000,-152.0,0.00010228,2]
[426537928,1782568150000,-253.61,0.00010356,2]
[426537921,1782568150000,-152.0,0.00010228,2]
[426537922,1782568150000,-152.0,0.00010228,2]
[426537924,1782568150000,-152.0,0.00010228,2]
[426537923,1782568150000,-152.0,0.00010228,2]
[426537925,1782568150000,-152.0,0.00010228,2]
[426537926,1782568150000,-288.0,0.00010228,2]
[426537927,1782568150000,-307.13,0.00010271,2]
[426537919,1782568150000,-152.0,0.00010228,2]
[426537929,1782568150000,-305.78,0.00010375,2]
[426537930,1782568150000,-255.85454254,0.00010378,2]
[426537931,1782568169000,167.98,0.0003741,120]
[426537933,1782568205000,-475.47920237,0.00010037,2]
[426537932,1782568205000,-3929.40058909,0.00010037,2]
[426537934,1782568227000,-485.0,0.00010037,2]
[426537941,1782568233000,-532.61,0.00010215,2]
[426537940,1782568233000,-0.13983214,0.00010037,2]
[426537987,1782568234000,-4475.19762657,0.00011452,2]
[426537972,1782568234000,-166.66,0.00011288,2]
[426537974,1782568234000,-12561.28446996,0.00011452,2]
[426537975,1782568234000,-141.41511071,0.00011452,2]
[426537978,1782568234000,-241.16896772,0.00011452,2]
[426537971,1782568234000,-201.42,0.00011233,2]
[426537976,1782568234000,-747.41602987,0.00011452,2]
[426537977,1782568234000,-293.94681533,0.00011452,2]
[426537980,1782568234000,-313.78093228,0.00011452,2]
[426537984,1782568234000,-371.2341185,0.00011452,2]
[426537989,1782568234000,-208.63313888,0.00011455,2]
[426537988,1782568234000,-1370.2313,0.00011455,2]
[426537997,1782568234000,-500.0,0.00011544,2]
[426537992,1782568234000,-166.66,0.00011507,2]
[426537994,1782568234000,-500.0,0.00011544,2]
[426537993,1782568234000,-151.34293724,0.00011543,2]
[426537995,1782568234000,-500.0,0.00011544,2]
[426537996,1782568234000,-500.0,0.00011544,2]
[426537991,1782568234000,-6263.7948,0.00011507,2]
[426537970,1782568234000,-152.0,0.00011227,2]
[426537999,1782568234000,-500.0,0.00011544,2]
[426537998,1782568234000,-500.0,0.00011544,2]
[426538000,1782568234000,-500.0,0.00011544,2]
[426538001,1782568234000,-500.0,0.00011544,2]
[426538002,1782568234000,-500.0,0.00011544,2]
[426538003,1782568234000,-500.0,0.00011544,2]
[426537990,1782568234000,-532.61,0.00011492,2]
[426537973,1782568234000,-166.66,0.00011397,2]
[426537962,1782568234000,-180.27958067,0.00011023,2]
[426537969,1782568234000,-152.0,0.00011227,2]
[426538005,1782568234000,-500.0,0.00011544,2]
[426537942,1782568234000,-51.27545746,0.00010378,2]
[426537943,1782568234000,-171.00404363,0.00010427,2]
[426537944,1782568234000,-307.13,0.00010492,2]
[426537949,1782568234000,-253.61,0.00010609,2]
[426537947,1782568234000,-308.13,0.00010586,2]
[426537945,1782568234000,-316.27,0.00010523,2]
[426537946,1782568234000,-305.78,0.00010582,2]
[426537948,1782568234000,-152.0,0.00010586,2]
[426537950,1782568234000,-307.13,0.00010615,2]
[426537952,1782568234000,-307.19,0.0001082,2]
[426537954,1782568234000,-253.61,0.00010861,2]
[426537968,1782568234000,-166.66,0.00011178,2]
[426537955,1782568234000,-216.51184279,0.00010934,2]
[426537953,1782568234000,-305.78,0.00010848,2]
[426537960,1782568234000,-130.27958067,0.00011023,2]
[426537958,1782568234000,-166.66,0.00010959,2]
[426537957,1782568234000,-70.68210461,0.00010959,2]
[426537956,1782568234000,-158.81789539,0.00010959,2]
[426537959,1782568234000,-255.0,0.00011023,2]
[426537961,1782568234000,-119.72041933,0.00011023,2]
[426537965,1782568234000,-253.61,0.00011114,2]
[426537967,1782568234000,-500.0,0.00011178,2]
[426537964,1782568234000,-166.66,0.00011068,2]
[426537963,1782568234000,-319.72041933,0.00011023,2]
[426537966,1782568234000,-305.78,0.00011173,2]
[426537951,1782568234000,-138.25760256,0.00010641,2]
[426538006,1782568234000,-500.0,0.00011544,2]
[426538029,1782568234000,-500.0,0.00011544,2]
[426538007,1782568234000,-500.0,0.00011544,2]
[426538039,1782568234000,-500.0,0.00011544,2]
[426538040,1782568234000,-500.0,0.00011544,2]
[426538043,1782568234000,-500.0,0.00011544,2]
[426538042,1782568234000,-500.0,0.00011544,2]
[426538041,1782568234000,-500.0,0.00011544,2]
[426538048,1782568234000,-500.0,0.00011544,2]
[426538046,1782568234000,-500.0,0.00011544,2]
[426538045,1782568234000,-500.0,0.00011544,2]
[426538047,1782568234000,-500.0,0.00011544,2]
[426538044,1782568234000,-500.0,0.00011544,2]
[426538050,1782568234000,-501.42857143,0.00011544,2]
[426538051,1782568234000,-501.42857143,0.00011544,2]
[426538036,1782568234000,-500.0,0.00011544,2]
[426538052,1782568234000,-501.42857143,0.00011544,2]
[426538053,1782568234000,-501.42857143,0.00011544,2]
[426538054,1782568234000,-501.42857143,0.00011544,2]
[426538056,1782568234000,-501.42857143,0.00011544,2]
[426538058,1782568234000,-501.42857143,0.00011544,2]
[426538059,1782568234000,-501.42857143,0.00011544,2]
[426538060,1782568234000,-501.42857143,0.00011544,2]
[426538061,1782568234000,-501.42857143,0.00011544,2]
[426538057,1782568234000,-501.42857143,0.00011544,2]
[426538063,1782568234000,-501.42857143,0.00011544,2]
[426538064,1782568234000,-501.42857143,0.00011544,2]
[426538062,1782568234000,-501.42857143,0.00011544,2]
[426538008,1782568234000,-500.0,0.00011544,2]
[426538055,1782568234000,-501.42857143,0.00011544,2]
[426538038,1782568234000,-500.0,0.00011544,2]
[426538049,1782568234000,-500.0,0.00011544,2]
[426538035,1782568234000,-500.0,0.00011544,2]
[426538004,1782568234000,-500.0,0.00011544,2]
[426538037,1782568234000,-500.0,0.00011544,2]
[426538012,1782568234000,-500.0,0.00011544,2]
[426538010,1782568234000,-500.0,0.00011544,2]
[426538014,1782568234000,-500.0,0.00011544,2]
[426538013,1782568234000,-500.0,0.00011544,2]
[426538011,1782568234000,-500.0,0.00011544,2]
[426538017,1782568234000,-500.0,0.00011544,2]
[426538015,1782568234000,-500.0,0.00011544,2]
[426538016,1782568234000,-500.0,0.00011544,2]
[426538019,1782568234000,-500.0,0.00011544,2]
[426538018,1782568234000,-500.0,0.00011544,2]
[426538024,1782568234000,-500.0,0.00011544,2]
[426538021,1782568234000,-500.0,0.00011544,2]
[426538009,1782568234000,-500.0,0.00011544,2]
[426538020,1782568234000,-500.0,0.00011544,2]
[426538022,1782568234000,-500.0,0.00011544,2]
[426538032,1782568234000,-500.0,0.00011544,2]
[426538031,1782568234000,-500.0,0.00011544,2]
[426538033,1782568234000,-500.0,0.00011544,2]
[426538028,1782568234000,-500.0,0.00011544,2]
[426538034,1782568234000,-500.0,0.00011544,2]
[426538027,1782568234000,-500.0,0.00011544,2]
[426538030,1782568234000,-152.34764896,0.00011544,2]
[426538026,1782568234000,-500.0,0.00011544,2]
[426538023,1782568234000,-500.0,0.00011544,2]
[426538025,1782568234000,-500.0,0.00011544,2]
[426538100,1782568235000,-50079.51038883,0.00011655,2]
[426538105,1782568235000,-12561.28446992,0.00011835,2]
[426538106,1782568235000,-5160.21267731,0.00011835,2]
[426538097,1782568235000,-2500.0,0.00011555,2]
[426538104,1782568235000,-151.0,0.00011823,2]
[426538102,1782568235000,-150.0,0.00011823,2]
[426538103,1782568235000,-301.0,0.00011823,2]
[426538099,1782568235000,-500.0,0.00011562,2]
[426538098,1782568235000,-205.76,0.00011555,2]
[426538107,1782568235000,-157.59,0.00011857,2]
[426538095,1782568235000,-33336.8515,0.00011555,2]
[426538101,1782568235000,-500.0,0.00011818,2]
[426538109,1782568235000,-169.05,0.00011891,2]
[426538115,1782568235000,-151.0,0.0001202,2]
[426538111,1782568235000,-1420.40686814,0.00011923,2]
[426538108,1782568235000,-1000.0,0.00011874,2]
[426538112,1782568235000,-1423.94692363,0.00011945,2]
[426538116,1782568235000,-350.0,0.00012043,2]
[426538117,1782568235000,-500.0,0.00012092,2]
[426538114,1782568235000,-151.0,0.0001202,2]
[426538113,1782568235000,-170.9,0.00011959,2]
[426538118,1782568235000,-433.0,0.00012125,2]
[426538120,1782568235000,-500.0,0.00012164,2]
[426538121,1782568235000,-1176.25738883,0.00012175,2]
[426538119,1782568235000,-1139.57767363,0.00012161,2]
[426538096,1782568235000,-2000.0,0.00011555,2]
[426538110,1782568235000,-152.0,0.0001192,2]
[426538094,1782568235000,-151.0,0.00011552,2]
[426538067,1782568235000,-501.42857143,0.00011544,2]
[426538088,1782568235000,-175.77634296,0.00011544,2]
[426538122,1782568235000,-915.0,0.00012188,2]
[426538065,1782568235000,-501.42857143,0.00011544,2]
[426538066,1782568235000,-501.42857143,0.00011544,2]
[426538068,1782568235000,-501.42857143,0.00011544,2]
[426538069,1782568235000,-501.42857143,0.00011544,2]
[426538071,1782568235000,-501.42857143,0.00011544,2]
[426538072,1782568235000,-501.42857143,0.00011544,2]
[426538070,1782568235000,-501.42857143,0.00011544,2]
[426538073,1782568235000,-501.42857143,0.00011544,2]
[426538075,1782568235000,-501.42857143,0.00011544,2]
[426538074,1782568235000,-501.42857143,0.00011544,2]
[426538076,1782568235000,-501.42857143,0.00011544,2]
[426538077,1782568235000,-501.42857143,0.00011544,2]
[426538079,1782568235000,-501.42857143,0.00011544,2]
[426538078,1782568235000,-501.42857143,0.00011544,2]
[426538080,1782568235000,-500.0,0.00011544,2]
[426538081,1782568235000,-335.08498886,0.00011544,2]
[426538082,1782568235000,-500.0,0.00011544,2]
[426538085,1782568235000,-601.42857142,0.00011544,2]
[426538083,1782568235000,-601.42857142,0.00011544,2]
[426538084,1782568235000,-601.42857142,0.00011544,2]
[426538086,1782568235000,-601.42857142,0.00011544,2]
[426538087,1782568235000,-601.42857142,0.00011544,2]
[426538091,1782568235000,-637.5794002,0.00011545,2]
[426538093,1782568235000,-151.0,0.00011552,2]
[426538090,1782568235000,-40080.9945464,0.00011545,2]
[426538092,1782568235000,-573228.1228054,0.00011545,2]
[426538089,1782568235000,-500.0,0.00011544,2]
[426538124,1782568235000,-350.0,0.0001219,2]
[426538143,1782568235000,-500.0,0.00012488,2]
[426538128,1782568235000,-158.95132205,0.00012262,2]
[426538159,1782568235000,-200.0,0.00012488,2]
[426538156,1782568235000,-150.0,0.00012488,2]
[426538158,1782568235000,-500.0,0.00012488,2]
[426538163,1782568235000,-500.0,0.00012488,2]
[426538164,1782568235000,-500.0,0.00012488,2]
[426538161,1782568235000,-262.0005398,0.00012488,2]
[426538160,1782568235000,-500.0,0.00012488,2]
[426538162,1782568235000,-500.0,0.00012488,2]
[426538165,1782568235000,-180.31101863,0.00012488,2]
[426538167,1782568235000,-500.0,0.00012488,2]
[426538166,1782568235000,-500.0,0.00012488,2]
[426538169,1782568235000,-500.0,0.00012488,2]
[426538170,1782568235000,-500.0,0.00012488,2]
[426538173,1782568235000,-179.36931728,0.0001252,7]
[426538171,1782568235000,-500.0,0.00012488,2]
[426538178,1782568235000,-151.0,0.00012538,2]
[426538177,1782568235000,-151.0,0.00012538,2]
[426538175,1782568235000,-200.0,0.00012526,2]
[426538172,1782568235000,-4320.18808246,0.00012498,2]
[426538174,1782568235000,-200.0,0.00012525,2]
[426538176,1782568235000,-151.0,0.00012538,2]
[426538181,1782568235000,-151.0,0.00012538,2]
[426538179,1782568235000,-151.0,0.00012538,2]
[426538182,1782568235000,-151.0,0.00012538,2]
[426538180,1782568235000,-151.0,0.00012538,2]
[426538183,1782568235000,-151.0,0.00012538,2]
[426538127,1782568235000,-5160.21267731,0.00012218,2]
[426538157,1782568235000,-500.0,0.00012488,2]
[426538155,1782568235000,-150.0,0.00012488,2]
[426538168,1782568235000,-500.0,0.00012488,2]
[426538152,1782568235000,-150.0,0.00012488,2]
[426538154,1782568235000,-250.0,0.00012488,2]
[426538125,1782568235000,-151.0,0.00012216,2]
[426538123,1782568235000,-911.0,0.00012188,2]
[426538129,1782568235000,-165.59,0.00012329,2]
[426538130,1782568235000,-500.0,0.00012366,2]
[426538131,1782568235000,-151.0,0.00012373,2]
[426538132,1782568235000,-292.55151127,0.00012373,2]
[426538133,1782568235000,-170.9,0.00012415,2]
[426538137,1782568235000,-237.34594247,0.00012488,2]
[426538139,1782568235000,-178.48218684,0.00012488,2]
[426538136,1782568235000,-150.0,0.00012488,2]
[426538138,1782568235000,-500.0,0.00012488,2]
[426538134,1782568235000,-1423.94692363,0.00012437,2]
[426538140,1782568235000,-500.0,0.00012488,2]
[426538126,1782568235000,-12561.28446992,0.00012218,2]
[426538151,1782568235000,-150.0,0.00012488,2]
[426538141,1782568235000,-500.0,0.00012488,2]
[426538142,1782568235000,-500.0,0.00012488,2]
[426538184,1782568235000,-151.0,0.00012538,2]
[426538144,1782568235000,-150.0,0.00012488,2]
[426538147,1782568235000,-150.0,0.00012488,2]
[426538150,1782568235000,-200.0,0.00012488,2]
[426538148,1782568235000,-150.0,0.00012488,2]
[426538146,1782568235000,-500.0,0.00012488,2]
[426538135,1782568235000,-150.0,0.00012488,2]
[426538149,1782568235000,-199.15016486,0.00012488,2]
[426538145,1782568235000,-150.0,0.00012488,2]
[426538153,1782568235000,-150.0,0.00012488,2]
[426538224,1782568236000,-500.0,0.00013698,2]
[426538225,1782568236000,-500.0,0.00013698,2]
[426538221,1782568236000,-1423.94692363,0.00013422,2]